[Event "57th Biel Festival MTO 2024"]
[White "Fromm,Marius"]
[Black "Emmenecker,Pierre-Antoine"]
[Site "Biel"]
[Round "6.18"]
[Annotator "TA"]
[Result "1/2-1/2"]
[Date "2024.07.20"]
[WhiteElo "2465"]
[BlackElo "2306"]
[PlyCount "106"]
[TimeControl "60"]

{[%evp 9,106,35,45,39,33,38,38,43,41,29,29,29,43,45,35,30,27,28,40,37,29,20,28,29,21,22,27,23,28,16,16,8,21,0,0,-12,-7,-26,-20,-32,-14,-19,4,11,16,18,6,10,6,16,15,5,6,0,4,6,13,13,13,12,18,12,12,12,13,17,17,13,12,0,0,0,0,-6,1,0,0,0,6,6,15,6,13,11,11,8,8,5,5,0,20,19,19,20,20,0,0,0,0]} 1. e4 {[%emt 0:0:3]} e5 {[%emt 0:2:29]} 2. Nf3 {[%emt 0:0:6]} Nc6 {[%emt 0:0:5]} 3. Bb5 {[%emt 0:0:5]} a6 {[%emt 0:0:4]} 4. Ba4 {[%emt 0:0:4]} Bc5 {[%emt 0:0:5]} 5. c3 {[%emt 0:6:21][%cal Bc2c3,Bc3d4][%mdl 32]} Nge7 {[%emt 0:0:21]} 6. d4 {[%emt 0:0:59]} exd4 {[%emt 0:0:13]} 7. cxd4 {[%emt 0:0:4]} Bb4+ {[%emt 0:0:14]} 8. Bd2 {[%emt 0:10:30] White is slightly better.} Bxd2+ {[%emt 0:0:11]} 9. Qxd2 {[%emt 0:0:4]} d5 {[%emt 0:0:15]} 10. exd5 {[%emt 0:0:5]} Qxd5 {[%emt 0:0:13]} 11. Nc3 {[%emt 0:0:8]} Qe6+ {[%emt 0:0:25]} 12. Qe3 {[%emt 0:8:25]} O-O {[%emt 0:15:46]} 13. O-O {[%emt 0:5:1]} Qd6 {[%emt 0:9:27]} 14. Rad1 {[%emt 0:7:9]} Nb4 {[%emt 0:2:25]} 15. Ne4 {[%emt 0:18:19]} Qb6 {[%emt 0:4:33]} 16. Bb3 {[%emt 0:3:32]} Nbd5 {[%emt 0:29:57]} 17. Qg5 {[%emt 0:0:36]} c6 {[%emt 0:0:48]} 18. Rfe1 {[%emt 0:1:16][%cal Oe4f6]} Qd8 {[%emt 0:5:52]} 19. Nc5 {[%emt 0:4:41]} b6 {[%emt 0:4:16] [#] Strongly threatening ...h6.} 20. Nd3 {[%emt 0:1:52]} Be6 {[%emt 0:6:27]} 21. Rc1 {[%emt 0:0:39]} f6 {[%emt 0:1:43]} 22. Qd2 {[%emt 0:1:8]} Qd6 {[%emt 0:6:9]} 23. Re4 {[%emt 0:5:47]} Bf7 {[%emt 0:1:30][%cal Be6f7,Bf7e8,Be8d7][%mdl 32]} 24. Rce1 {[%emt 0:0:25]} Rae8 {[%emt 0:4:16]} 25. g3 {[%emt 0:5:29] The position is equal.} Ng6 {[%emt 0:6:49]} 26. Rxe8 {[%emt 0:3:31]} Rxe8 {[%emt 0:1:43]} 27. Rxe8+ {[%emt 0:0:6]} Bxe8 {[%emt 0:0:4]} 28. Nb4 {[%emt 0:0:7]} a5 {[%emt 0:1:23]} 29. Nxd5 {[%emt 0:1:9]} cxd5 {[%emt 0:0:7]} 30. a3 {[%emt 0:0:29]} Ne7 {[%emt 0:1:4]} 31. Nh4 {[%emt 0:0:4]} Kf8 {[%emt 0:2:57]} 32. Ng2 {[%emt 0:1:59]} Bd7 {[%emt 0:1:16]} 33. Ne3 {[%emt 0:1:4]} Be6 {[%emt 0:0:25]} 34. Qd3 {[%emt 0:0:33]} Kg8 {[%emt 0:2:28]} 35. h4 {[%emt 0:2:2]} g6 {[%emt 0:0:36]} 36. Qb5 {[%emt 0:2:27]} Qd8 {[%emt 0:0:20]} 37. Bd1 {[%emt 0:6:14]} Bf7 {[%emt 0:0:37]} 38. Bf3 {[%emt 0:0:28]} Kg7 {[%emt 0:0:22]} 39. Nd1 {[%emt 0:3:45]} Nf5 {[%emt 0:0:33]} 40. Qd3 {[%emt 0:0:9]} Qc7 {[%emt 0:0:44]} 41. Qc3 {[%emt 0:55:39]} Qd7 {[%emt 0:20:59]} (41... Qxc3 {simplifies} 42. Nxc3 Nxd4 43. Bxd5 Bxd5 44. Nxd5 b5 )42. Ne3 {[%emt 0:0:0]} Nxe3 {[%emt 0:0:55]} 43. Qxe3 $11 {[%emt 0:0:0][%mdl 4096] Endgame. KQB-KQB} Qc7 {[%emt 0:4:17]} 44. Kg2 {[%emt 0:0:0]} Qc4 {[%emt 0:7:55]} 45. Qd2 {[%emt 0:0:0]} Be6 {[%emt 0:2:55]} 46. Be2 {[%emt 0:0:0]} Qc7 {[%emt 0:1:18]} 47. Qe3 {[%emt 0:0:0]} Bf7 {[%emt 0:1:7]} 48. Bd3 {[%emt 0:0:0]} Qc6 {[%emt 0:1:40]} 49. Qe7 {[%emt 0:0:0]} h6 {[%emt 0:7:48] [#]} 50. h5 $1 {[%emt 0:0:0]} gxh5 {[%emt 0:0:8]} 51. Bf5 {[%emt 0:0:0]} Kg8 {[%emt 0:3:13]} 52. Bd7 {[%emt 0:0:0][%mdl 1024] White has compensation.} Qc7 {[%emt 0:0:17]} 53. Kh3 {[%emt 0:0:0]} Kg7 {[%emt 0:0:37] Weighted Error Value: White=0.04 (flawless) /Black=0.04 (flawless) .  OK:         	White=17    	Black=23} 1/2-1/2

[Event "57th Biel Festival MTO 2024"]
[White "Cervantes Landeiro,Thalia"]
[Black "Saraci,Nderim"]
[Site "Biel"]
[Round "6.19"]
[Annotator "ChessBase"]
[Result "1/2-1/2"]
[Date "2024.07.20"]
[WhiteElo "2271"]
[BlackElo "2449"]
[PlyCount "82"]
[TimeControl "60"]

1. d4 {[%emt 0:0:13]} Nf6 {[%emt 0:0:17]} 2. c4 {[%emt 0:0:13]} e6 {[%emt 0:1:57]} 3. Nf3 {[%emt 0:0:5]} d5 {[%emt 0:1:11]} 4. Nc3 {[%emt 0:0:19]} h6 {[%emt 0:0:56]} 5. Bf4 {[%emt 0:4:5]} Bd6 {[%emt 0:6:25]} 6. Bxd6 {[%emt 0:2:27]} Qxd6 {[%emt 0:0:7]} 7. e3 {[%emt 0:0:34]} O-O {[%emt 0:0:43]} 8. Be2 {[%emt 0:2:12]} c6 {[%emt 0:11:20]} 9. O-O {[%emt 0:1:10]} Nbd7 {[%emt 0:0:20]} 10. Qc2 {[%emt 0:4:32]} dxc4 {[%emt 0:13:50]} 11. Bxc4 {[%emt 0:0:17]} e5 {[%emt 0:0:30]} 12. Rad1 {[%emt 0:3:24]} exd4 {[%emt 0:1:47]} 13. Rxd4 {[%emt 0:0:26]} Qe7 {[%emt 0:0:50]} 14. a4 {[%emt 0:10:14]} Ne5 {[%emt 0:4:32]} 15. Nxe5 {[%emt 0:2:20]} Qxe5 {[%emt 0:0:7]} 16. h3 {[%emt 0:2:35]} a6 {[%emt 0:6:12]} 17. Rfd1 {[%emt 0:10:19]} b5 {[%emt 0:2:50]} 18. axb5 {[%emt 0:12:4]} axb5 {[%emt 0:2:51]} 19. Be2 {[%emt 0:2:5]} c5 {[%emt 0:8:50]} 20. R4d2 {[%emt 0:4:49]} Bf5 {[%emt 0:11:12]} 21. Bd3 {[%emt 0:4:47]} Bxd3 {[%emt 0:1:20]} 22. Rxd3 {[%emt 0:2:39]} c4 {[%emt 0:4:29]} 23. Rd4 {[%emt 0:1:52]} Rfc8 {[%emt 0:0:53]} 24. Nd5 {[%emt 0:5:6]} Nxd5 {[%emt 0:2:11]} 25. Rxd5 {[%emt 0:0:8]} Qe8 {[%emt 0:0:12]} 26. Qd2 {[%emt 0:6:58]} Rab8 {[%emt 0:0:47]} 27. Qd4 {[%emt 0:4:29]} Qe7 {[%emt 0:10:41]} 28. Rd7 {[%emt 0:3:37]} Qf8 {[%emt 0:1:38]} 29. Qd6 {[%emt 0:4:33]} b4 {[%emt 0:6:39]} 30. Qxf8+ {[%emt 0:0:23]} Kxf8 {[%emt 0:0:5]} 31. Kf1 {[%emt 0:1:38]} c3 {[%emt 0:2:24]} 32. bxc3 {[%emt 0:0:40]} bxc3 {[%emt 0:0:49]} 33. Rc1 {[%emt 0:1:57]} Rb2 {[%emt 0:1:5]} 34. Rd3 {[%emt 0:2:5]} Ra8 {[%emt 0:0:8]} 35. Rdxc3 {[%emt 0:4:3]} Raa2 {[%emt 0:0:6]} 36. Rc8+ {[%emt 0:0:55]} Ke7 {[%emt 0:0:6]} 37. R8c7+ {[%emt 0:0:16]} Kf6 {[%emt 0:1:46]} 38. R7c6+ {[%emt 0:2:44]} Kg5 {[%emt 0:3:10]} 39. h4+ {[%emt 0:1:43]} Kxh4 {[%emt 0:0:59]} 40. R6c4+ {[%emt 0:1:39]} Kg5 {[%emt 0:3:13]} 41. Rf4 {[%emt 0:50:19]} f5 {[%emt 0:8:16]} 1/2-1/2

[Event "57th Biel Festival MTO 2024"]
[White "Toktomushev,Teimur"]
[Black "Amartuvshin,Ganzorig"]
[Site "Biel"]
[Round "6.20"]
[Annotator "ChessBase"]
[Result "0-1"]
[Date "2024.07.20"]
[WhiteElo "2300"]
[BlackElo "2411"]
[PlyCount "64"]
[TimeControl "60"]

1. d4 {[%emt 0:7:6]} Nf6 {[%emt 0:0:16]} 2. c4 {[%emt 0:0:2]} e6 {[%emt 0:0:8]} 3. Nf3 {[%emt 0:0:6]} d5 {[%emt 0:0:5]} 4. Nc3 {[%emt 0:0:9]} Bb4 {[%emt 0:0:11]} 5. Qa4+ {[%emt 0:0:8]} Nc6 {[%emt 0:0:7]} 6. e3 {[%emt 0:0:10]} O-O {[%emt 0:0:13]} 7. Qc2 {[%emt 0:0:6]} Re8 {[%emt 0:0:10]} 8. Bd2 {[%emt 0:0:7]} a6 {[%emt 0:0:11]} 9. a3 {[%emt 0:1:30]} Bd6 {[%emt 0:0:10]} 10. h3 {[%emt 0:2:34]} h6 {[%emt 0:0:59]} 11. Rd1 {[%emt 0:4:39]} Bd7 {[%emt 0:4:42]} 12. Bd3 {[%emt 0:17:57]} dxc4 {[%emt 0:3:35]} 13. Bxc4 {[%emt 0:0:6]} Qe7 {[%emt 0:5:37]} 14. O-O {[%emt 0:6:31]} e5 {[%emt 0:1:21]} 15. d5 {[%emt 0:9:13]} Na7 {[%emt 0:2:10]} 16. e4 {[%emt 0:2:21]} Nc8 {[%emt 0:0:16]} 17. Ba2 {[%emt 0:9:30]} Nh5 {[%emt 0:2:26]} 18. Be3 {[%emt 0:9:52]} Qf6 {[%emt 0:3:35]} 19. Nd2 {[%emt 0:3:8]} Ne7 {[%emt 0:2:53]} 20. Nc4 {[%emt 0:1:51]} Ng6 {[%emt 0:0:35]} 21. f3 {[%emt 0:3:31]} Nhf4 {[%emt 0:1:17]} 22. Kh2 {[%emt 0:3:22]} Nh4 {[%emt 0:26:44]} 23. Bxf4 {[%emt 0:16:42]} exf4 {[%emt 0:0:48]} 24. Qf2 {[%emt 0:3:19]} Qg5 {[%emt 0:1:39]} 25. Nxd6 {[%emt 0:6:2]} cxd6 {[%emt 0:0:5]} 26. g3 {[%emt 0:1:36]} Ng6 {[%emt 0:0:22]} 27. Ne2 {[%emt 0:1:46]} fxg3+ {[%emt 0:0:44]} 28. Qxg3 {[%emt 0:0:12]} Qf6 {[%emt 0:0:10]} 29. Rf2 {[%emt 0:0:52]} Re5 {[%emt 0:0:10]} 30. Rg2 {[%emt 0:0:29]} Rh5 {[%emt 0:0:52]} 31. Ng1 {[%emt 0:0:30]} Nf4 {[%emt 0:0:11]} 32. Rf1 {[%emt 0:0:27]} Rg5 {[%emt 0:0:10]} 0-1

[Event "57th Biel Festival MTO 2024"]
[White "Tahay,Alexis"]
[Black "Rappazzo,Johannes"]
[Site "Biel"]
[Round "6.21"]
[Annotator "ChessBase"]
[Result "1-0"]
[Date "2024.07.20"]
[WhiteElo "2375"]
[BlackElo "2169"]
[PlyCount "89"]
[TimeControl "60"]

1. e4 {[%emt 0:3:20]} c5 {[%emt 0:0:5]} 2. Nf3 {[%emt 0:0:4]} d6 {[%emt 0:0:4]} 3. Bb5+ {[%emt 0:0:3]} Nd7 {[%emt 0:0:11]} 4. d4 {[%emt 0:0:18]} cxd4 {[%emt 0:0:40]} 5. Nxd4 {[%emt 0:0:5]} a6 {[%emt 0:3:49]} 6. Bd3 {[%emt 0:0:25]} Ngf6 {[%emt 0:7:3]} 7. O-O {[%emt 0:1:44]} Nc5 {[%emt 0:9:35]} 8. Nc3 {[%emt 0:1:6]} e5 {[%emt 0:5:53]} 9. Nb3 {[%emt 0:5:10]} Nxb3 {[%emt 0:11:37]} 10. axb3 {[%emt 0:1:58]} h6 {[%emt 0:7:8]} 11. Be3 {[%emt 0:6:28]} Be7 {[%emt 0:6:4]} 12. Na4 {[%emt 0:2:32]} Be6 {[%emt 0:4:11]} 13. Nb6 {[%emt 0:15:48]} Rb8 {[%emt 0:0:34]} 14. f3 {[%emt 0:1:5]} Nd7 {[%emt 0:8:47]} 15. Nd5 {[%emt 0:0:33]} Bxd5 {[%emt 0:1:47]} 16. exd5 {[%emt 0:0:2]} O-O {[%emt 0:3:58]} 17. c4 {[%emt 0:1:18]} Bg5 {[%emt 0:2:5]} 18. Bf2 {[%emt 0:0:4]} f5 {[%emt 0:2:16]} 19. b4 {[%emt 0:2:9]} Rc8 {[%emt 0:7:51]} 20. b3 {[%emt 0:3:11]} Qe8 {[%emt 0:5:18]} 21. Re1 {[%emt 0:3:0]} Qf7 {[%emt 0:3:43]} 22. Ra2 {[%emt 0:2:17]} Kh8 {[%emt 0:2:17]} 23. Rc2 {[%emt 0:4:33]} Rce8 {[%emt 0:4:14]} 24. Be2 {[%emt 0:9:35]} b6 {[%emt 0:9:28]} 25. Ra2 {[%emt 0:1:54]} e4 {[%emt 0:2:18]} 26. fxe4 {[%emt 0:3:55]} Rxe4 {[%emt 0:0:37]} 27. Bf3 {[%emt 0:1:20]} Rxe1+ {[%emt 0:0:20]} 28. Qxe1 {[%emt 0:0:1]} Ne5 {[%emt 0:0:17]} 29. Qd1 {[%emt 0:2:7]} b5 {[%emt 0:0:59]} 30. c5 {[%emt 0:0:37]} Ng4 {[%emt 0:1:25]} 31. Bd4 {[%emt 0:3:55]} Bf4 {[%emt 0:0:36]} 32. h3 {[%emt 0:3:8]} Ne5 {[%emt 0:0:21]} 33. Rxa6 {[%emt 0:1:9]} Qg6 {[%emt 0:0:36]} 34. Bf2 {[%emt 0:0:9]} Qf6 {[%emt 0:0:29]} 35. Be2 {[%emt 0:1:21]} Nf7 {[%emt 0:0:24]} 36. Bxb5 {[%emt 0:4:53]} Ng5 {[%emt 0:0:16]} 37. Bd4 {[%emt 0:1:50]} Qg6 {[%emt 0:0:23]} 38. Ra7 {[%emt 0:0:11]} Nf7 {[%emt 0:1:4]} 39. Qf3 {[%emt 0:1:32]} Ng5 {[%emt 0:0:12]} 40. Qc3 {[%emt 0:1:29]} Nf7 {[%emt 0:0:53]} 41. c6 {[%emt 0:51:24]} Kh7 {[%emt 0:9:27]} 42. c7 {[%emt 0:0:0]} Qh5 {[%emt 0:1:1]} 43. Qf3 {[%emt 0:0:0]} Qh4 {[%emt 0:1:5]} 44. Bf2 {[%emt 0:0:0]} Qg5 {[%emt 0:3:42]} 45. h4 {[%emt 0:1:25]} 1-0

[Event "57th Biel Festival MTO 2024"]
[White "Munkhzul,Turmunkh"]
[Black "Kalogridis,Antonios"]
[Site "Biel"]
[Round "6.22"]
[Annotator "ChessBase"]
[Result "1/2-1/2"]
[Date "2024.07.20"]
[WhiteElo "2232"]
[BlackElo "2391"]
[PlyCount "91"]
[TimeControl "60"]

1. e4 {[%emt 0:0:2]} c5 {[%emt 0:0:2]} 2. Nf3 {[%emt 0:0:11]} Nc6 {[%emt 0:0:3]} 3. d4 {[%emt 0:0:19]} cxd4 {[%emt 0:0:3]} 4. Nxd4 {[%emt 0:0:8]} Nf6 {[%emt 0:0:2]} 5. Nc3 {[%emt 0:0:10]} d6 {[%emt 0:0:4]} 6. Bg5 {[%emt 0:0:24]} e6 {[%emt 0:0:7]} 7. Qd2 {[%emt 0:0:22]} a6 {[%emt 0:0:4]} 8. O-O-O {[%emt 0:0:24]} Bd7 {[%emt 0:0:4]} 9. f4 {[%emt 0:0:24]} Be7 {[%emt 0:0:5]} 10. Nf3 {[%emt 0:0:35]} b5 {[%emt 0:0:5]} 11. e5 {[%emt 0:1:2]} b4 {[%emt 0:0:5]} 12. exf6 {[%emt 0:0:6]} bxc3 {[%emt 0:0:4]} 13. Qxc3 {[%emt 0:0:8]} gxf6 {[%emt 0:0:4]} 14. Bh4 {[%emt 0:0:21]} Rg8 {[%emt 0:0:7]} 15. Kb1 {[%emt 0:0:42]} Rb8 {[%emt 0:0:5]} 16. g4 {[%emt 0:11:24]} Rxg4 {[%emt 0:13:53]} 17. h3 {[%emt 0:4:48]} Rxf4 {[%emt 0:4:57]} 18. Rg1 {[%emt 0:1:1]} Bf8 {[%emt 0:24:47]} 19. Rg4 {[%emt 0:18:22]} Rxg4 {[%emt 0:5:31]} 20. hxg4 {[%emt 0:0:56]} d5 {[%emt 0:15:49]} 21. Qxf6 {[%emt 0:2:17]} Qxf6 {[%emt 0:1:3]} 22. Bxf6 {[%emt 0:0:8]} Be7 {[%emt 0:3:42]} 23. g5 {[%emt 0:2:31]} h6 {[%emt 0:3:29]} 24. Bxe7 {[%emt 0:3:1]} Kxe7 {[%emt 0:0:12]} 25. gxh6 {[%emt 0:0:14]} Rh8 {[%emt 0:0:48]} 26. Bxa6 {[%emt 0:8:47]} Rxh6 {[%emt 0:2:30]} 27. b3 {[%emt 0:8:4]} Rh3 {[%emt 0:9:41]} 28. Be2 {[%emt 0:1:57]} Rg3 {[%emt 0:0:7]} 29. a4 {[%emt 0:3:55]} Rg2 {[%emt 0:0:22]} 30. Bb5 {[%emt 0:1:32]} Rf2 {[%emt 0:3:5]} 31. Ne1 {[%emt 0:2:19]} Ne5 {[%emt 0:3:5]} 32. Bxd7 {[%emt 0:5:11]} Kxd7 {[%emt 0:0:6]} 33. c4 {[%emt 0:0:42]} Rf1 {[%emt 0:1:40]} 34. cxd5 {[%emt 0:2:24]} f5 {[%emt 0:3:27]} 35. dxe6+ {[%emt 0:0:27]} Kxe6 {[%emt 0:0:6]} 36. a5 {[%emt 0:4:9]} Nc6 {[%emt 0:0:25]} 37. a6 {[%emt 0:0:9]} f4 {[%emt 0:2:8]} 38. Rc1 {[%emt 0:4:18]} Kd6 {[%emt 0:0:5]} 39. Nd3 {[%emt 0:4:37]} Rxc1+ {[%emt 0:0:35]} 40. Kxc1 {[%emt 0:0:8]} Kc7 {[%emt 0:0:29]} 41. Nxf4 {[%emt 0:51:3]} Kb6 {[%emt 0:50:5]} 42. Kb2 {[%emt 0:0:13]} Kxa6 {[%emt 0:0:36]} 43. Kc3 {[%emt 0:0:15]} Na5 {[%emt 0:0:4]} 44. b4 {[%emt 0:0:5]} Nc6 {[%emt 0:0:5]} 45. Nd5 {[%emt 0:0:4]} Nxb4 {[%emt 0:0:5]} 46. Kxb4 {[%emt 0:0:5]} 1/2-1/2

[Event "57th Biel Festival MTO 2024"]
[White "Dotzer,Lukas"]
[Black "Harish,Neeraj"]
[Site "Biel"]
[Round "6.23"]
[Annotator "ChessBase"]
[Result "1-0"]
[Date "2024.07.20"]
[WhiteElo "2369"]
[BlackElo "2123"]
[PlyCount "121"]
[TimeControl "60"]

1. e4 {[%emt 0:0:2]} c5 {[%emt 0:0:13]} 2. Nf3 {[%emt 0:0:5]} Nc6 {[%emt 0:0:12]} 3. d4 {[%emt 0:0:7]} cxd4 {[%emt 0:0:5]} 4. Nxd4 {[%emt 0:0:7]} Nf6 {[%emt 0:0:6]} 5. Nc3 {[%emt 0:0:9]} e6 {[%emt 0:0:16]} 6. Nxc6 {[%emt 0:0:13]} bxc6 {[%emt 0:0:5]} 7. e5 {[%emt 0:0:7]} Nd5 {[%emt 0:0:5]} 8. Ne4 {[%emt 0:0:5]} Qc7 {[%emt 0:0:5]} 9. f4 {[%emt 0:0:9]} Qb6 {[%emt 0:0:13]} 10. c4 {[%emt 0:0:13]} Bb4+ {[%emt 0:0:10]} 11. Ke2 {[%emt 0:0:13]} f5 {[%emt 0:0:15]} 12. exf6 {[%emt 0:0:9]} Nxf6 {[%emt 0:0:7]} 13. Be3 {[%emt 0:0:12]} Qd8 {[%emt 0:0:11]} 14. Nd6+ {[%emt 0:0:8]} Bxd6 {[%emt 0:0:7]} 15. Qxd6 {[%emt 0:0:6]} Bb7 {[%emt 0:0:20]} 16. Rd1 {[%emt 0:0:15]} Rc8 {[%emt 0:0:30]} 17. Qc5 {[%emt 0:0:24]} Qb6 {[%emt 0:1:45]} 18. Qxb6 {[%emt 0:0:34]} axb6 {[%emt 0:0:6]} 19. Bxb6 {[%emt 0:0:17]} c5 {[%emt 0:0:22]} 20. Rd2 {[%emt 0:15:31]} Ne4 {[%emt 0:13:0]} 21. Rc2 {[%emt 0:1:32]} Ra8 {[%emt 0:1:11]} 22. Ke3 {[%emt 0:8:47]} Rxa2 {[%emt 0:9:59]} 23. Bd3 {[%emt 0:14:48]} Ra6 {[%emt 0:0:47]} 24. Bc7 {[%emt 0:7:42]} Nf6 {[%emt 0:1:28]} 25. b4 {[%emt 0:7:30]} cxb4 {[%emt 0:10:39]} 26. Rb1 {[%emt 0:5:22]} Rc6 {[%emt 0:1:21]} 27. Be5 {[%emt 0:10:58]} Ng4+ {[%emt 0:1:57]} 28. Kd2 {[%emt 0:2:14]} Nxe5 {[%emt 0:0:15]} 29. fxe5 {[%emt 0:0:40]} O-O {[%emt 0:6:39]} 30. Rxb4 {[%emt 0:6:10]} Ba6 {[%emt 0:5:28]} 31. Ke3 {[%emt 0:2:44]} Rc5 {[%emt 0:4:15]} 32. Kd4 {[%emt 0:0:47]} Ra5 {[%emt 0:0:7]} 33. g3 {[%emt 0:10:20]} g6 {[%emt 0:7:55]} 34. Rcb2 {[%emt 0:5:15]} Rc8 {[%emt 0:5:32]} 35. Rb8 {[%emt 0:3:55]} Rac5 {[%emt 0:1:22]} 36. R2b6 {[%emt 0:2:32]} R5c7 {[%emt 0:0:49]} 37. Rxc8+ {[%emt 0:3:49]} Bxc8 {[%emt 0:0:5]} 38. Rb8 {[%emt 0:3:15]} Kf7 {[%emt 0:1:48]} 39. Ra8 {[%emt 0:0:41]} Ke7 {[%emt 0:4:12]} 40. c5 {[%emt 0:0:29]} Kf7 {[%emt 0:0:27]} 41. Be4 {[%emt 0:17:51]} h6 {[%emt 0:17:19]} 42. h4 {[%emt 0:13:24]} g5 {[%emt 0:3:23]} 43. h5 {[%emt 0:2:58]} g4 {[%emt 0:2:55]} 44. Bd3 {[%emt 0:2:31]} Ke7 {[%emt 0:1:40]} 45. Be2 {[%emt 0:1:21]} Kd8 {[%emt 0:9:39]} 46. Bxg4 {[%emt 0:3:30]} Rb7 {[%emt 0:2:7]} 47. Be2 {[%emt 0:1:3]} Rb4+ {[%emt 0:1:34]} 48. Kc3 {[%emt 0:0:24]} Re4 {[%emt 0:0:8]} 49. Ba6 {[%emt 0:0:31]} Rxe5 {[%emt 0:2:59]} 50. Rxc8+ {[%emt 0:0:8]} Ke7 {[%emt 0:0:3]} 51. g4 {[%emt 0:0:52]} Kf6 {[%emt 0:0:47]} 52. Kd2 {[%emt 0:1:44]} Kg7 {[%emt 0:4:34]} 53. Rc7 {[%emt 0:1:32]} Rd5+ {[%emt 0:2:27]} 54. Ke3 {[%emt 0:0:17]} Kf6 {[%emt 0:1:39]} 55. Bc8 {[%emt 0:0:41]} Ke7 {[%emt 0:4:30]} 56. Rxd7+ {[%emt 0:0:9]} Rxd7 {[%emt 0:0:4]} 57. Bxd7 {[%emt 0:0:10]} Kxd7 {[%emt 0:0:3]} 58. g5 {[%emt 0:0:9]} hxg5 {[%emt 0:0:5]} 59. h6 {[%emt 0:0:6]} g4 {[%emt 0:0:6]} 60. h7 {[%emt 0:0:4]} g3 {[%emt 0:0:8]} 61. h8=Q {[%emt 0:15:7]} 1-0

[Event "57th Biel Festival MTO 2024"]
[White "Collin,Moritz Valentin"]
[Black "Rosen,Eric"]
[Site "Biel"]
[Round "6.24"]
[Annotator "ChessBase"]
[Result "0-1"]
[Date "2024.07.20"]
[WhiteElo "2312"]
[BlackElo "2361"]
[PlyCount "79"]
[TimeControl "60"]

1. d4 {[%emt 0:0:5]} d5 {[%emt 0:0:12]} 2. c4 {[%emt 0:0:5]} e6 {[%emt 0:0:6]} 3. Nc3 {[%emt 0:0:4]} Nf6 {[%emt 0:0:4]} 4. cxd5 {[%emt 0:0:6]} exd5 {[%emt 0:0:4]} 5. Bg5 {[%emt 0:0:9]} Be7 {[%emt 0:0:26]} 6. e3 {[%emt 0:0:11]} h6 {[%emt 0:0:19]} 7. Bh4 {[%emt 0:0:13]} Bg4 {[%emt 0:0:19]} 8. Qc2 {[%emt 0:16:39]} O-O {[%emt 0:0:52]} 9. Bd3 {[%emt 0:4:8]} c5 {[%emt 0:0:53]} 10. dxc5 {[%emt 0:10:7]} d4 {[%emt 0:1:36]} 11. exd4 {[%emt 0:13:45]} Qxd4 {[%emt 0:0:6]} 12. f3 {[%emt 0:13:45]} Be6 {[%emt 0:33:54]} 13. Bf2 {[%emt 0:2:45]} Qe5+ {[%emt 0:0:30]} 14. Qe2 {[%emt 0:6:5]} Qc7 {[%emt 0:14:27]} 15. Nb5 {[%emt 0:7:1]} Qa5+ {[%emt 0:1:10]} 16. Kf1 {[%emt 0:7:15]} Na6 {[%emt 0:6:32]} 17. a3 {[%emt 0:2:38]} Rfd8 {[%emt 0:6:46]} 18. Be1 {[%emt 0:14:30]} Qa4 {[%emt 0:0:51]} 19. Bc2 {[%emt 0:2:3]} Qf4 {[%emt 0:5:14]} 20. g3 {[%emt 0:0:18]} Qg5 {[%emt 0:1:3]} 21. b4 {[%emt 0:0:12]} Ng4 {[%emt 0:5:22]} 22. Nh3 {[%emt 0:4:15]} Qe5 {[%emt 0:9:56]} 23. Qxe5 {[%emt 0:2:8]} Nxe5 {[%emt 0:0:20]} 24. Kg2 {[%emt 0:0:13]} Nxf3 {[%emt 0:4:16]} 25. Kxf3 {[%emt 0:1:24]} Bxh3 {[%emt 0:0:3]} 26. g4 {[%emt 0:2:40]} h5 {[%emt 0:0:30]} 27. gxh5 {[%emt 0:0:18]} Bd7 {[%emt 0:0:36]} 28. Nc3 {[%emt 0:0:29]} Bf6 {[%emt 0:4:39]} 29. Be4 {[%emt 0:0:52]} Bc6 {[%emt 0:0:23]} 30. Rd1 {[%emt 0:0:30]} Rxd1 {[%emt 0:5:15]} 31. Nxd1 {[%emt 0:0:16]} Rd8 {[%emt 0:0:8]} 32. Bg3 {[%emt 0:0:45]} Rd3+ {[%emt 0:1:20]} 33. Ne3 {[%emt 0:0:30]} Rxa3 {[%emt 0:0:34]} 34. Bxc6 {[%emt 0:0:14]} bxc6 {[%emt 0:0:5]} 35. Ke4 {[%emt 0:0:38]} Nxb4 {[%emt 0:0:49]} 36. Ng4 {[%emt 0:0:29]} Nd5 {[%emt 0:2:53]} 37. Re1 {[%emt 0:0:42]} Bc3 {[%emt 0:0:58]} 38. Rb1 {[%emt 0:0:17]} Bb4 {[%emt 0:1:31]} 39. h6 {[%emt 0:0:42]} Nc3+ {[%emt 0:0:18]} 40. Kd4 {[%emt 0:0:24]} 0-1

[Event "57th Biel Festival MTO 2024"]
[White "Gemelli,Romain"]
[Black "Narayanan,Samrug"]
[Site "Biel"]
[Round "6.25"]
[Annotator "ChessBase"]
[Result "0-1"]
[Date "2024.07.20"]
[WhiteElo "2101"]
[BlackElo "2335"]
[PlyCount "84"]
[TimeControl "60"]

1. Nf3 {[%emt 0:0:4]} d5 {[%emt 0:0:4]} 2. g3 {[%emt 0:0:6]} Nf6 {[%emt 0:0:4]} 3. Bg2 {[%emt 0:0:6]} e6 {[%emt 0:0:4]} 4. O-O {[%emt 0:0:7]} Be7 {[%emt 0:0:4]} 5. c4 {[%emt 0:0:5]} d4 {[%emt 0:1:2]} 6. e3 {[%emt 0:0:7]} c5 {[%emt 0:0:25]} 7. exd4 {[%emt 0:0:7]} cxd4 {[%emt 0:0:2]} 8. d3 {[%emt 0:0:7]} O-O {[%emt 0:0:8]} 9. Re1 {[%emt 0:0:28]} Nc6 {[%emt 0:0:7]} 10. Bf4 {[%emt 0:0:52]} Re8 {[%emt 0:1:31]} 11. Ne5 {[%emt 0:0:43]} Nxe5 {[%emt 0:4:38]} 12. Bxe5 {[%emt 0:0:7]} Bc5 {[%emt 0:2:6]} 13. Bxf6 {[%emt 0:4:42]} Qxf6 {[%emt 0:0:7]} 14. Nd2 {[%emt 0:0:5]} Qd8 {[%emt 0:12:13]} 15. f4 {[%emt 0:1:36]} a5 {[%emt 0:6:29]} 16. Ne4 {[%emt 0:10:28]} Be7 {[%emt 0:1:17]} 17. Qh5 {[%emt 0:9:33]} a4 {[%emt 0:6:4]} 18. h4 {[%emt 0:1:8]} h6 {[%emt 0:3:6]} 19. Nd2 {[%emt 0:4:29]} Bb4 {[%emt 0:8:15]} 20. Re2 {[%emt 0:6:26]} Ra5 {[%emt 0:2:51]} 21. Qf3 {[%emt 0:1:6]} b6 {[%emt 0:9:55]} 22. Qf2 {[%emt 0:6:38]} Re7 {[%emt 0:15:38]} 23. Nf3 {[%emt 0:7:5]} f6 {[%emt 0:2:4]} 24. a3 {[%emt 0:2:41]} Bc5 {[%emt 0:0:16]} 25. Nd2 {[%emt 0:0:29]} Raa7 {[%emt 0:3:15]} 26. Rae1 {[%emt 0:2:50]} Re8 {[%emt 0:1:26]} 27. f5 {[%emt 0:5:29]} Rae7 {[%emt 0:3:42]} 28. fxe6 {[%emt 0:1:59]} Bxe6 {[%emt 0:0:12]} 29. Rxe6 {[%emt 0:0:6]} Rxe6 {[%emt 0:0:5]} 30. Rxe6 {[%emt 0:0:6]} Rxe6 {[%emt 0:0:5]} 31. Bd5 {[%emt 0:0:5]} Qd6 {[%emt 0:1:29]} 32. Qf5 {[%emt 0:14:29]} Qxg3+ {[%emt 0:4:25]} 33. Kh1 {[%emt 0:0:7]} Qe1+ {[%emt 0:0:7]} 34. Nf1 {[%emt 0:0:13]} Kf7 {[%emt 0:0:9]} 35. Kg2 {[%emt 0:5:19]} Qe2+ {[%emt 0:3:32]} 36. Kg1 {[%emt 0:2:35]} Bd6 {[%emt 0:5:32]} 37. h5 {[%emt 0:1:58]} Ke7 {[%emt 0:4:40]} 38. Bxe6 {[%emt 0:0:42]} Qxe6 {[%emt 0:0:3]} 39. Qf3 {[%emt 0:0:20]} f5 {[%emt 0:0:49]} 40. Kf2 {[%emt 0:3:18]} Qe5 {[%emt 0:2:31]} 41. Qc6 {[%emt 0:51:35]} Qf4+ {[%emt 0:52:14]} 42. Ke1 {[%emt 0:0:48]} Qh4+ {[%emt 0:6:28]} 0-1